[Event "*** Titled Tuesday Blitz"]
[Site "Chess.com"]
[Date "2020.12.29"]
[Round "9"]
[White "HanSchut"]
[Black "dopolian"]
[Result "0-1"]
[WhiteElo "2258"]
[BlackElo "2466"]
[TimeControl "180+1"]
[EndTime "11:45:20 PST"]
[Termination "dopolian won on time"]

1. e4 {[%clk 0:03:00.9]} 1... e5 {[%clk 0:02:52.7]} 2. Nf3 {[%clk 0:03:00.8]}
2... Nc6 {[%clk 0:02:52.7]} 3. Bc4 {[%clk 0:03:01.4]} 3... Bc5 {[%clk
0:02:52.3]} 4. b4 {[%clk 0:03:01.3]} 4... Bxb4 {[%clk 0:02:50.7]} 5. c3 {[%clk
0:03:01.9]} 5... Ba5 {[%clk 0:02:51.1]} 6. d4 {[%clk 0:03:02.3]} 6... d6 {[%clk
0:02:47]} 7. Qb3 {[%clk 0:03:02.3]} 7... Qe7 {[%clk 0:02:43.3]} 8. d5 {[%clk
0:03:02.2]} 8... Nd4 {[%clk 0:02:37]} 9. Nxd4 {[%clk 0:03:02.1]} 9... exd4
{[%clk 0:02:35.4]} 10. O-O {[%clk 0:02:49.8]} 10... Bxc3 {[%clk 0:02:28.4]} 11.
Nxc3 {[%clk 0:02:41.2]} 11... dxc3 {[%clk 0:02:29.3]} 12. e5 {[%clk 0:02:30.9]}
12... dxe5 {[%clk 0:02:23.8]} 13. Ba3 {[%clk 0:02:28.7]} 13... Qf6 {[%clk
0:02:12.3]} 14. f4 {[%clk 0:02:28.4]} 14... e4 {[%clk 0:02:10.3]} 15. f5 {[%clk
0:02:21.6]} 15... Ne7 {[%clk 0:02:02.7]} 16. Rae1 {[%clk 0:02:11.4]} 16... O-O
{[%clk 0:01:51.4]} 17. Rxe4 {[%clk 0:02:04.8]} 17... Nxf5 {[%clk 0:01:38.6]} 18.
Bxf8 {[%clk 0:01:47]} 18... Kxf8 {[%clk 0:01:39.5]} 19. Qa3+ {[%clk 0:01:42]}
19... Qd6 {[%clk 0:01:39.1]} 20. Qxc3 {[%clk 0:01:33.3]} 20... Qc5+ {[%clk
0:01:18.3]} 21. Kh1 {[%clk 0:01:24.4]} 21... Nd6 {[%clk 0:01:18.3]} 22. Ref4
{[%clk 0:01:08.2]} 22... Kg8 {[%clk 0:00:39.6]} 23. Qe1 {[%clk 0:00:52.9]} 23...
Bf5 {[%clk 0:00:32.1]} 24. Bb3 {[%clk 0:00:52.9]} 24... Bg6 {[%clk 0:00:31.5]}
25. Qe2 {[%clk 0:00:43.5]} 25... Re8 {[%clk 0:00:29.8]} 26. Qf2 {[%clk
0:00:41.7]} 26... Qxf2 {[%clk 0:00:27.2]} 27. R4xf2 {[%clk 0:00:42.6]} 27... Re7
{[%clk 0:00:16.6]} 28. h3 {[%clk 0:00:42]} 28... Bd3 {[%clk 0:00:16]} 29. Rc1
{[%clk 0:00:36.7]} 29... Kf8 {[%clk 0:00:14.2]} 30. Rf3 {[%clk 0:00:31.5]} 30...
Be4 {[%clk 0:00:05.4]} 31. Rfc3 {[%clk 0:00:31.5]} 31... Nb5 {[%clk 0:00:05.8]}
32. Rc5 {[%clk 0:00:26.1]} 32... a6 {[%clk 0:00:05.7]} 33. a4 {[%clk 0:00:25.5]}
33... b6 {[%clk 0:00:05.9]} 34. axb5 {[%clk 0:00:16.2]} 34... bxc5 {[%clk
0:00:05.9]} 35. bxa6 {[%clk 0:00:17.1]} 35... Re8 {[%clk 0:00:03.7]} 36. Bc4
{[%clk 0:00:16.3]} 36... Ra8 {[%clk 0:00:02.5]} 37. Kg1 {[%clk 0:00:16]} 37...
Ke7 {[%clk 0:00:01.8]} 38. Kf2 {[%clk 0:00:16.5]} 38... Kd6 {[%clk 0:00:02.2]}
39. Ke3 {[%clk 0:00:16.4]} 39... Bxd5 {[%clk 0:00:02.3]} 40. Rd1 {[%clk
0:00:10.6]} 40... c6 {[%clk 0:00:02.4]} 41. Bd3 {[%clk 0:00:10.8]} 41... Ra7
{[%clk 0:00:02.1]} 42. g4 {[%clk 0:00:09.7]} 42... Kc7 {[%clk 0:00:01.8]} 43.
Rf1 {[%clk 0:00:08]} 43... c4 {[%clk 0:00:01.8]} 44. Be4 {[%clk 0:00:06]} 44...
Rxa6 {[%clk 0:00:02.1]} 45. Bxd5 {[%clk 0:00:04.6]} 45... cxd5 {[%clk 0:00:03]}
46. Rxf7+ {[%clk 0:00:04.9]} 46... Kd6 {[%clk 0:00:03.7]} 47. Rxg7 {[%clk
0:00:05.5]} 47... Ra3+ {[%clk 0:00:04]} 48. Ke2 {[%clk 0:00:04.6]} 48... Rxh3
{[%clk 0:00:04.1]} 49. Ra7 {[%clk 0:00:02.4]} 49... Ke5 {[%clk 0:00:04.4]} 50.
Ra5 {[%clk 0:00:02]} 50... Ke4 {[%clk 0:00:04.5]} 51. g5 {[%clk 0:00:01.6]}
51... Rh2+ {[%clk 0:00:05.4]} 52. Kf1 {[%clk 0:00:01.6]} 52... c3 {[%clk
0:00:04.9]} 53. Rc5 {[%clk 0:00:01.4]} 53... c2 {[%clk 0:00:05.2]} 54. Kg1
{[%clk 0:00:01.1]} 54... Rd2 {[%clk 0:00:05.8]} 0-1

[Event "*** Titled Tuesday Blitz"]
[Site "Chess.com"]
[Date "2020.12.29"]
[Round "9"]
[White "PawnEatingZombie"]
[Black "atalz0"]
[Result "0-1"]
[WhiteElo "2245"]
[BlackElo "2374"]
[TimeControl "180+1"]
[EndTime "11:45:20 PST"]
[Termination "atalz0 won on time"]

1. d4 {[%clk 0:03:00.9]} 1... Nf6 {[%clk 0:02:59.1]} 2. c4 {[%clk 0:03:00.8]}
2... e6 {[%clk 0:02:59.4]} 3. Nc3 {[%clk 0:03:01.3]} 3... Bb4 {[%clk 0:02:59.5]}
4. Qc2 {[%clk 0:03:01.9]} 4... O-O {[%clk 0:02:58.6]} 5. e4 {[%clk 0:03:01.5]}
5... d5 {[%clk 0:02:57.2]} 6. e5 {[%clk 0:03:01.7]} 6... Ne4 {[%clk 0:02:57.7]}
7. Bd3 {[%clk 0:03:02.2]} 7... c5 {[%clk 0:02:57]} 8. Nf3 {[%clk 0:03:02.5]}
8... cxd4 {[%clk 0:02:56.2]} 9. Nxd4 {[%clk 0:03:03.4]} 9... Nd7 {[%clk
0:02:56.3]} 10. Bf4 {[%clk 0:03:03.8]} 10... Ndc5 {[%clk 0:02:52.8]} 11. O-O
{[%clk 0:02:58.1]} 11... Bxc3 {[%clk 0:02:47.1]} 12. bxc3 {[%clk 0:02:57.7]}
12... Bd7 {[%clk 0:02:47.1]} 13. Be2 {[%clk 0:02:56.3]} 13... Ba4 {[%clk
0:02:44.1]} 14. Qb2 {[%clk 0:02:37.3]} 14... Qa5 {[%clk 0:02:22.1]} 15. Rac1
{[%clk 0:02:20.4]} 15... Bc6 {[%clk 0:02:14.6]} 16. f3 {[%clk 0:02:16.6]} 16...
Na4 {[%clk 0:02:14.1]} 17. Qb4 {[%clk 0:01:45]} 17... Qxb4 {[%clk 0:02:12]} 18.
cxb4 {[%clk 0:01:45.6]} 18... Nec3 {[%clk 0:02:11.3]} 19. Bd3 {[%clk 0:01:44.1]}
19... Nxa2 {[%clk 0:01:49.5]} 20. Rb1 {[%clk 0:00:58.5]} 20... N2c3 {[%clk
0:01:42.7]} 21. Ra1 {[%clk 0:00:49]} 21... dxc4 {[%clk 0:01:37.4]} 22. Bxc4
{[%clk 0:00:47.7]} 22... Nb6 {[%clk 0:01:25.4]} 23. Nxc6 {[%clk 0:00:31.5]}
23... Nxc4 {[%clk 0:01:22.4]} 24. Ne7+ {[%clk 0:00:25.9]} 24... Kh8 {[%clk
0:01:22.4]} 25. Kf2 {[%clk 0:00:15.5]} 25... Rfe8 {[%clk 0:01:14.4]} 26. Rfc1
{[%clk 0:00:15.3]} 26... Rxe7 {[%clk 0:01:07.2]} 27. Rxc3 {[%clk 0:00:15.2]}
27... b5 {[%clk 0:01:07.1]} 28. Rd3 {[%clk 0:00:14.5]} 28... h6 {[%clk
0:01:04.1]} 29. Be3 {[%clk 0:00:13.4]} 29... Nxe5 {[%clk 0:00:58.2]} 30. Rd6
{[%clk 0:00:10.7]} 30... Nc4 {[%clk 0:00:58]} 31. Rda6 {[%clk 0:00:10.6]} 31...
Nxe3 {[%clk 0:00:54.1]} 32. Kxe3 {[%clk 0:00:11.1]} 32... Rc7 {[%clk 0:00:52.4]}
33. R1a5 {[%clk 0:00:09.9]} 33... Rb7 {[%clk 0:00:39.5]} 34. h4 {[%clk 0:00:08]}
34... Kg8 {[%clk 0:00:37.1]} 35. g4 {[%clk 0:00:08.4]} 35... Kf8 {[%clk
0:00:34]} 36. h5 {[%clk 0:00:08.7]} 36... Ke7 {[%clk 0:00:34]} 37. Ke4 {[%clk
0:00:08.6]} 37... f6 {[%clk 0:00:31]} 38. f4 {[%clk 0:00:08]} 38... Kd7 {[%clk
0:00:26]} 39. Kd4 {[%clk 0:00:06.2]} 39... Rc8 {[%clk 0:00:23.8]} 40. Rxa7
{[%clk 0:00:05.3]} 40... Rc4+ {[%clk 0:00:23.2]} 41. Ke3 {[%clk 0:00:03.7]}
41... Rxa7 {[%clk 0:00:10.5]} 42. Rxa7+ {[%clk 0:00:04.6]} 42... Kd6 {[%clk
0:00:10.9]} 43. Rxg7 {[%clk 0:00:04.8]} 43... Rxb4 {[%clk 0:00:11.1]} 44. Rg6
{[%clk 0:00:05.2]} 44... Rb3+ {[%clk 0:00:09.5]} 45. Ke4 {[%clk 0:00:05.5]}
45... Rg3 {[%clk 0:00:07.6]} 46. Rxh6 {[%clk 0:00:04.9]} 46... Rxg4 {[%clk
0:00:06.3]} 47. Rxf6 {[%clk 0:00:05.1]} 47... Rh4 {[%clk 0:00:06.2]} 48. h6
{[%clk 0:00:05]} 48... b4 {[%clk 0:00:06.5]} 49. Rf8 {[%clk 0:00:03.6]} 49...
Rxh6 {[%clk 0:00:04.4]} 50. Rb8 {[%clk 0:00:04.1]} 50... Kc5 {[%clk 0:00:02.9]}
51. Ke5 {[%clk 0:00:02.6]} 51... Kc4 {[%clk 0:00:02.3]} 0-1

[Event "*** Titled Tuesday Blitz"]
[Site "Chess.com"]
[Date "2020.12.29"]
[Round "9"]
[White "Ariadna_Atreides"]
[Black "CraiggoryC"]
[Result "1/2-1/2"]
[WhiteElo "2078"]
[BlackElo "2186"]
[TimeControl "180+1"]
[EndTime "11:45:21 PST"]
[Termination "Game drawn by repetition"]

1. d4 {[%clk 0:01:50]} 1... Nf6 {[%clk 0:02:59.5]} 2. Nf3 {[%clk 0:01:49]} 2...
g6 {[%clk 0:02:59.6]} 3. c3 {[%clk 0:01:48]} 3... Bg7 {[%clk 0:03:00.1]} 4. Bf4
{[%clk 0:01:47.2]} 4... b6 {[%clk 0:02:57]} 5. Nbd2 {[%clk 0:01:46.2]} 5... Bb7
{[%clk 0:02:56.5]} 6. Qc2 {[%clk 0:01:46.1]} 6... c5 {[%clk 0:02:55.5]} 7. e3
{[%clk 0:01:41.2]} 7... Nc6 {[%clk 0:02:49.1]} 8. Be2 {[%clk 0:01:37.9]} 8...
O-O {[%clk 0:02:43.7]} 9. O-O {[%clk 0:01:36.6]} 9... d6 {[%clk 0:02:38.2]} 10.
h3 {[%clk 0:01:25.1]} 10... Rc8 {[%clk 0:02:30.9]} 11. Qd1 {[%clk 0:01:22.2]}
11... cxd4 {[%clk 0:02:20.2]} 12. exd4 {[%clk 0:01:21.5]} 12... e5 {[%clk
0:02:15.2]} 13. dxe5 {[%clk 0:01:18.9]} 13... Nd5 {[%clk 0:02:05.6]} 14. Bg5
{[%clk 0:01:15]} 14... Qd7 {[%clk 0:01:54.7]} 15. Nc4 {[%clk 0:01:08.6]} 15...
dxe5 {[%clk 0:01:47]} 16. Qd2 {[%clk 0:00:55.4]} 16... f6 {[%clk 0:01:41.3]} 17.
Bh6 {[%clk 0:00:53.8]} 17... Bxh6 {[%clk 0:01:29.6]} 18. Qxh6 {[%clk 0:00:52.5]}
18... Nf4 {[%clk 0:01:30.1]} 19. Bd1 {[%clk 0:00:47.6]} 19... Ne7 {[%clk
0:01:12.7]} 20. Bb3 {[%clk 0:00:43.8]} 20... Bd5 {[%clk 0:00:57]} 21. Ne3 {[%clk
0:00:38.3]} 21... Bxb3 {[%clk 0:00:51.1]} 22. axb3 {[%clk 0:00:39.2]} 22... Nf5
{[%clk 0:00:50.6]} 23. Nxf5 {[%clk 0:00:36.4]} 23... Qxf5 {[%clk 0:00:46.6]} 24.
Rxa7 {[%clk 0:00:34.9]} 24... g5 {[%clk 0:00:34.1]} 25. g4 {[%clk 0:00:14.5]}
25... Ne2+ {[%clk 0:00:24.1]} 26. Kg2 {[%clk 0:00:13.6]} 26... Nf4+ {[%clk
0:00:20.7]} 27. Kh2 {[%clk 0:00:12.4]} 27... Qg6 {[%clk 0:00:17.5]} 28. Qxg6+
{[%clk 0:00:12]} 28... hxg6 {[%clk 0:00:16.9]} 29. Rd1 {[%clk 0:00:10.8]} 29...
Rfd8 {[%clk 0:00:16.6]} 30. Rdd7 {[%clk 0:00:10.1]} 30... Rxd7 {[%clk
0:00:16.7]} 31. Rxd7 {[%clk 0:00:09.7]} 31... b5 {[%clk 0:00:15.9]} 32. Nd2
{[%clk 0:00:07.6]} 32... Rc5 {[%clk 0:00:13.2]} 33. Ne4 {[%clk 0:00:07.5]} 33...
Rc6 {[%clk 0:00:13.5]} 34. Rb7 {[%clk 0:00:06]} 34... Nd3 {[%clk 0:00:12.5]} 35.
Rb8+ {[%clk 0:00:05.9]} 35... Kf7 {[%clk 0:00:12.2]} 36. Rb7+ {[%clk 0:00:06.3]}
36... Ke6 {[%clk 0:00:11.7]} 37. Rxb5 {[%clk 0:00:06.8]} 37... Nxb2 {[%clk
0:00:11.2]} 38. b4 {[%clk 0:00:06.2]} 38... Nd3 {[%clk 0:00:10.9]} 39. Nc5+
{[%clk 0:00:06.2]} 39... Nxc5 {[%clk 0:00:10.8]} 40. bxc5 {[%clk 0:00:06.9]}
40... Kd5 {[%clk 0:00:10.7]} 41. Kg3 {[%clk 0:00:06.5]} 41... Rxc5 {[%clk
0:00:11]} 42. Rb6 {[%clk 0:00:06.5]} 42... Rxc3+ {[%clk 0:00:10.7]} 43. f3
{[%clk 0:00:05]} 43... e4 {[%clk 0:00:11]} 44. Rxf6 {[%clk 0:00:04.9]} 44...
Rxf3+ {[%clk 0:00:10.2]} 45. Rxf3 {[%clk 0:00:04.8]} 45... exf3 {[%clk
0:00:10.9]} 46. Kxf3 {[%clk 0:00:05.7]} 46... Kd4 {[%clk 0:00:10.3]} 47. Kg3
{[%clk 0:00:05.4]} 47... Ke3 {[%clk 0:00:10.4]} 48. h4 {[%clk 0:00:05.6]} 48...
gxh4+ {[%clk 0:00:09.1]} 49. Kxh4 {[%clk 0:00:06.5]} 49... Kf4 {[%clk
0:00:08.6]} 50. Kh3 {[%clk 0:00:06.3]} 50... g5 {[%clk 0:00:08.8]} 51. Kh2
{[%clk 0:00:05.8]} 51... Kxg4 {[%clk 0:00:07.5]} 52. Kg2 {[%clk 0:00:06.3]}
52... Kf4 {[%clk 0:00:07.7]} 53. Kf2 {[%clk 0:00:06.7]} 53... g4 {[%clk
0:00:07.8]} 54. Kg2 {[%clk 0:00:06.7]} 54... g3 {[%clk 0:00:08.2]} 55. Kg1
{[%clk 0:00:07]} 55... Kg4 {[%clk 0:00:08.6]} 56. Kg2 {[%clk 0:00:06.8]} 56...
Kf4 {[%clk 0:00:08.6]} 57. Kg1 {[%clk 0:00:06.8]} 57... Kf3 {[%clk 0:00:08.8]}
58. Kf1 {[%clk 0:00:06.9]} 58... Ke3 {[%clk 0:00:09.1]} 59. Kg2 {[%clk
0:00:06.8]} 59... Kf4 {[%clk 0:00:09.5]} 1/2-1/2

[Event "*** Titled Tuesday Blitz"]
[Site "Chess.com"]
[Date "2020.12.29"]
[Round "9"]
[White "catzapto"]
[Black "KubaGepard"]
[Result "0-1"]
[WhiteElo "2120"]
[BlackElo "2290"]
[TimeControl "180+1"]
[EndTime "11:45:27 PST"]
[Termination "KubaGepard won by checkmate"]

1. e4 {[%clk 0:03:00.9]} 1... e5 {[%clk 0:02:59.4]} 2. Nf3 {[%clk 0:03:01]} 2...
Nc6 {[%clk 0:02:59]} 3. d4 {[%clk 0:03:01.5]} 3... exd4 {[%clk 0:02:58.9]} 4.
Bc4 {[%clk 0:03:02]} 4... Bc5 {[%clk 0:02:58.2]} 5. c3 {[%clk 0:03:01]} 5... Nf6
{[%clk 0:02:57.9]} 6. cxd4 {[%clk 0:02:57.7]} 6... Bb4+ {[%clk 0:02:57.6]} 7.
Nc3 {[%clk 0:02:58.1]} 7... Nxe4 {[%clk 0:02:56.7]} 8. O-O {[%clk 0:02:58.6]}
8... Bxc3 {[%clk 0:02:56.3]} 9. d5 {[%clk 0:02:59]} 9... Bf6 {[%clk 0:02:55.3]}
10. Re1 {[%clk 0:02:52]} 10... Ne7 {[%clk 0:02:54.1]} 11. Rxe4 {[%clk
0:02:49.2]} 11... d6 {[%clk 0:02:50]} 12. Bg5 {[%clk 0:02:47.5]} 12... Bxg5
{[%clk 0:02:45.7]} 13. Nxg5 {[%clk 0:02:47.1]} 13... h6 {[%clk 0:02:45.9]} 14.
Qe2 {[%clk 0:01:40.3]} 14... hxg5 {[%clk 0:02:43.3]} 15. Re1 {[%clk 0:01:39]}
15... Be6 {[%clk 0:02:42.5]} 16. dxe6 {[%clk 0:01:36.9]} 16... f6 {[%clk
0:02:41.5]} 17. Bd3 {[%clk 0:01:18.1]} 17... c6 {[%clk 0:02:33.2]} 18. h3 {[%clk
0:01:13.6]} 18... Qa5 {[%clk 0:02:31.5]} 19. a4 {[%clk 0:01:08.8]} 19... d5
{[%clk 0:02:20.6]} 20. b4 {[%clk 0:01:07]} 20... Qc7 {[%clk 0:02:13.5]} 21. Rg4
{[%clk 0:01:01.7]} 21... O-O-O {[%clk 0:02:11.6]} 22. b5 {[%clk 0:00:53.4]}
22... c5 {[%clk 0:02:09.4]} 23. Bc2 {[%clk 0:00:50.1]} 23... d4 {[%clk
0:01:59.2]} 24. Qd2 {[%clk 0:00:50.1]} 24... Nd5 {[%clk 0:01:36.9]} 25. a5
{[%clk 0:00:50.3]} 25... Nc3 {[%clk 0:01:35.3]} 26. f4 {[%clk 0:00:42.5]} 26...
gxf4 {[%clk 0:01:30.9]} 27. e7 {[%clk 0:00:34.6]} 27... Rde8 {[%clk 0:01:25.8]}
28. b6 {[%clk 0:00:32]} 28... axb6 {[%clk 0:01:22.3]} 29. axb6 {[%clk
0:00:32.9]} 29... Qd6 {[%clk 0:01:08.2]} 30. Bf5+ {[%clk 0:00:26.6]} 30... Kb8
{[%clk 0:01:06.9]} 31. Re6 {[%clk 0:00:22.7]} 31... Qd5 {[%clk 0:00:42.4]} 32.
Qxf4+ {[%clk 0:00:22.7]} 32... Ka8 {[%clk 0:00:41.4]} 33. Re1 {[%clk 0:00:22.8]}
33... Qa2 {[%clk 0:00:34.9]} 34. Qf1 {[%clk 0:00:10.1]} 34... Rxe7 {[%clk
0:00:20.8]} 35. Ra1 {[%clk 0:00:10]} 35... Re2 {[%clk 0:00:18]} 36. Rxa2+ {[%clk
0:00:09.8]} 36... Rxa2 {[%clk 0:00:18.5]} 37. Rf4 {[%clk 0:00:09.3]} 37... Re8
{[%clk 0:00:17.8]} 38. Rf2 {[%clk 0:00:09.1]} 38... Ra6 {[%clk 0:00:16.5]} 39.
Kh2 {[%clk 0:00:09.2]} 39... Rxb6 {[%clk 0:00:16.2]} 40. Bd7 {[%clk 0:00:09.1]}
40... Rd8 {[%clk 0:00:13]} 41. Bf5 {[%clk 0:00:08.8]} 41... Nd5 {[%clk
0:00:11.1]} 42. Ra2+ {[%clk 0:00:08.1]} 42... Kb8 {[%clk 0:00:10.5]} 43. Be4
{[%clk 0:00:08.4]} 43... Ne3 {[%clk 0:00:10.5]} 44. Qf4+ {[%clk 0:00:08.2]}
44... Rbd6 {[%clk 0:00:11]} 45. g4 {[%clk 0:00:07.5]} 45... c4 {[%clk
0:00:10.5]} 46. Rd2 {[%clk 0:00:07.2]} 46... c3 {[%clk 0:00:09.8]} 47. Rxd4
{[%clk 0:00:07.2]} 47... g5 {[%clk 0:00:08.3]} 48. Qg3 {[%clk 0:00:06.6]} 48...
Nf1+ {[%clk 0:00:08]} 49. Kg2 {[%clk 0:00:07.1]} 49... Nxg3 {[%clk 0:00:08.5]}
50. Rxd6 {[%clk 0:00:08]} 50... Rxd6 {[%clk 0:00:08.5]} 51. Bc2 {[%clk
0:00:08.2]} 51... Rd2+ {[%clk 0:00:08.5]} 52. Kxg3 {[%clk 0:00:09.1]} 52... Rxc2
{[%clk 0:00:09.1]} 53. h4 {[%clk 0:00:10]} 53... f5 {[%clk 0:00:09.4]} 54. hxg5
{[%clk 0:00:10.9]} 54... fxg4 {[%clk 0:00:09.6]} 55. Kxg4 {[%clk 0:00:11.1]}
55... Rd2 {[%clk 0:00:10.1]} 56. Kf5 {[%clk 0:00:12]} 56... Rd8 {[%clk 0:00:11]}
57. g6 {[%clk 0:00:12.6]} 57... c2 {[%clk 0:00:11.4]} 58. Kf6 {[%clk 0:00:13.5]}
58... c1=Q {[%clk 0:00:11.5]} 59. Kf7 {[%clk 0:00:14.4]} 59... Qf4+ {[%clk
0:00:11.1]} 60. Kg7 {[%clk 0:00:15.3]} 60... Qf8+ {[%clk 0:00:11.3]} 61. Kh7
{[%clk 0:00:16.2]} 61... Qh8# {[%clk 0:00:11.7]} 0-1

[Event "*** Titled Tuesday Blitz"]
[Site "Chess.com"]
[Date "2020.12.29"]
[Round "9"]
[White "tigra"]
[Black "platy3"]
[Result "1/2-1/2"]
[WhiteElo "2865"]
[BlackElo "2866"]
[TimeControl "180+1"]
[EndTime "11:45:33 PST"]
[Termination "Game drawn by stalemate"]

1. e4 {[%clk 0:02:58.4]} 1... c5 {[%clk 0:02:59.3]} 2. Nf3 {[%clk 0:02:58.1]}
2... e6 {[%clk 0:02:59.5]} 3. d4 {[%clk 0:02:58.2]} 3... cxd4 {[%clk 0:03:00.4]}
4. Nxd4 {[%clk 0:02:59.1]} 4... Nc6 {[%clk 0:03:01.3]} 5. Nc3 {[%clk 0:02:59.8]}
5... Qc7 {[%clk 0:03:01.1]} 6. Be3 {[%clk 0:02:54.5]} 6... a6 {[%clk 0:03:00.9]}
7. f4 {[%clk 0:02:54.6]} 7... Bb4 {[%clk 0:02:44.9]} 8. Ne2 {[%clk 0:02:51.1]}
8... Nf6 {[%clk 0:02:42.5]} 9. a3 {[%clk 0:02:50.7]} 9... Ba5 {[%clk 0:02:36.4]}
10. b4 {[%clk 0:02:40.8]} 10... Bb6 {[%clk 0:02:36.6]} 11. Bxb6 {[%clk
0:02:40.9]} 11... Qxb6 {[%clk 0:02:37.5]} 12. e5 {[%clk 0:02:41.6]} 12... Ng4
{[%clk 0:02:33]} 13. Ne4 {[%clk 0:02:38.9]} 13... f6 {[%clk 0:02:09.2]} 14. h3
{[%clk 0:02:11.1]} 14... Ne3 {[%clk 0:02:06.6]} 15. Qd3 {[%clk 0:01:46.9]} 15...
fxe5 {[%clk 0:02:04.9]} 16. Nd6+ {[%clk 0:01:42.4]} 16... Ke7 {[%clk 0:02:00.3]}
17. c4 {[%clk 0:01:42.4]} 17... Nd4 {[%clk 0:01:43.9]} 18. c5 {[%clk 0:01:38.1]}
18... Qc6 {[%clk 0:01:32.1]} 19. fxe5 {[%clk 0:01:28.5]} 19... Ndc2+ {[%clk
0:01:03.6]} 20. Kd2 {[%clk 0:01:28.1]} 20... b6 {[%clk 0:00:57.9]} 21. Nd4
{[%clk 0:01:21.6]} 21... Nxd4 {[%clk 0:00:54.1]} 22. Qxd4 {[%clk 0:01:21.8]}
22... Nf5 {[%clk 0:00:23]} 23. Nxf5+ {[%clk 0:01:21.4]} 23... exf5 {[%clk
0:00:23.9]} 24. cxb6 {[%clk 0:01:21.9]} 24... Bb7 {[%clk 0:00:21.2]} 25. Rc1
{[%clk 0:01:18.2]} 25... Qd5 {[%clk 0:00:16.2]} 26. Qxd5 {[%clk 0:01:18.4]}
26... Bxd5 {[%clk 0:00:17.1]} 27. a4 {[%clk 0:01:17.4]} 27... a5 {[%clk
0:00:17]} 28. Rc5 {[%clk 0:01:16.9]} 28... Ke6 {[%clk 0:00:13.9]} 29. bxa5
{[%clk 0:01:16.5]} 29... d6 {[%clk 0:00:11.1]} 30. exd6 {[%clk 0:01:13.7]} 30...
Kxd6 {[%clk 0:00:12]} 31. Rb5 {[%clk 0:01:02]} 31... Rhb8 {[%clk 0:00:12.1]} 32.
Be2 {[%clk 0:00:55.6]} 32... Bxg2 {[%clk 0:00:10.9]} 33. Rg1 {[%clk 0:00:55.1]}
33... Bc6 {[%clk 0:00:10.3]} 34. Rxf5 {[%clk 0:00:52.3]} 34... Bd7 {[%clk
0:00:10.6]} 35. Rfg5 {[%clk 0:00:48.5]} 35... g6 {[%clk 0:00:10.8]} 36. Rd1
{[%clk 0:00:43.8]} 36... Bf5 {[%clk 0:00:10.4]} 37. Kc3+ {[%clk 0:00:39]} 37...
Kc5 {[%clk 0:00:10.6]} 38. Bg4 {[%clk 0:00:19.9]} 38... h6 {[%clk 0:00:07.3]}
39. Rxf5+ {[%clk 0:00:16.9]} 39... gxf5 {[%clk 0:00:06.9]} 40. Bf3 {[%clk
0:00:15.4]} 40... Rxa5 {[%clk 0:00:06.7]} 41. b7 {[%clk 0:00:14.8]} 41... Rxa4
{[%clk 0:00:06.7]} 42. Rd5+ {[%clk 0:00:14.9]} 42... Kb6 {[%clk 0:00:07]} 43.
Rxf5 {[%clk 0:00:14.8]} 43... Ra3+ {[%clk 0:00:06.2]} 44. Kd4 {[%clk 0:00:14.9]}
44... Ra4+ {[%clk 0:00:06]} 45. Ke5 {[%clk 0:00:13.4]} 45... Ra5+ {[%clk
0:00:06.2]} 46. Kf4 {[%clk 0:00:12.8]} 46... Rxf5+ {[%clk 0:00:05.4]} 47. Kxf5
{[%clk 0:00:13.1]} 47... Rf8+ {[%clk 0:00:05.6]} 48. Kg4 {[%clk 0:00:13.4]}
48... h5+ {[%clk 0:00:05.4]} 49. Kg3 {[%clk 0:00:13.9]} 49... Ka7 {[%clk
0:00:04.1]} 50. h4 {[%clk 0:00:14]} 50... Rxf3+ {[%clk 0:00:02.3]} 51. Kxf3
{[%clk 0:00:14.1]} 51... Kxb7 {[%clk 0:00:03.2]} 52. Kf4 {[%clk 0:00:15]} 52...
Kc8 {[%clk 0:00:04.1]} 53. Kg5 {[%clk 0:00:15.9]} 53... Kd8 {[%clk 0:00:05]} 54.
Kxh5 {[%clk 0:00:16.4]} 54... Ke8 {[%clk 0:00:05.9]} 55. Kh6 {[%clk 0:00:16.7]}
55... Kf8 {[%clk 0:00:06.8]} 56. Kh7 {[%clk 0:00:17.6]} 56... Kf7 {[%clk
0:00:07.1]} 57. h5 {[%clk 0:00:18.5]} 57... Kf8 {[%clk 0:00:07.5]} 58. h6 {[%clk
0:00:19.4]} 58... Kf7 {[%clk 0:00:07.9]} 59. Kh8 {[%clk 0:00:20.3]} 59... Kf8
{[%clk 0:00:08.8]} 60. h7 {[%clk 0:00:21.2]} 60... Kf7 {[%clk 0:00:08.9]}
1/2-1/2